lending/lending_fUSD_20250917
["ID","MTS","AMOUNT","RATE_DAILY","PERIOD"]
[385918424,1758132644919,-400.0,0.00024312,2]
[385918425,1758132644928,-400.0,0.00024312,2]
[385918426,1758132644938,-581.92,0.00024312,2]
[385918427,1758132644947,-3372.05,0.00024312,2]
[385918428,1758132644956,-400.0,0.00024312,2]
[385918429,1758132644965,-400.0,0.00024312,2]
[385918430,1758132644974,-429.73,0.00024312,2]
[385918431,1758132644984,-401.97,0.00024312,2]
[385918432,1758132644993,-1712.51,0.00024312,2]
[385918433,1758132645002,-400.0,0.00024312,2]
[385918434,1758132645011,-530.65,0.00024312,2]
[385918435,1758132645021,-685.04,0.00024312,2]
[385918436,1758132645031,-400.0,0.00024312,2]
[385918437,1758132645041,-400.0,0.00024312,2]
[385918438,1758132645051,-400.0,0.00024312,2]
[385918439,1758132645061,-400.0,0.00024312,2]
[385918440,1758132645072,-472.15,0.00024312,2]
[385918441,1758132645082,-400.0,0.00024312,2]
[385918442,1758132645091,-887.54,0.00024312,2]
[385918443,1758132645102,-400.0,0.00024312,2]
[385918444,1758132645111,-406.25,0.00024312,2]
[385918445,1758132645122,-812.87,0.00024312,2]
[385918446,1758132645131,-432.63,0.00024312,2]
[385918447,1758132645141,-498.77,0.00024312,2]
[385918448,1758132645151,-731.66,0.00024312,2]
[385918449,1758132645160,-400.0,0.00024312,2]
[385918450,1758132645170,-672.01,0.00024312,2]
[385918452,1758132645179,-1661.82,0.00024312,2]
[385918454,1758132645189,-400.0,0.00024312,2]
[385918457,1758132645198,-500.0,0.00024329,2]
[385918460,1758132645207,-150.0,0.0002441,4]
[385918462,1758132645217,-1391.21034974,0.00024455,2]
[385918464,1758132645228,-2473.69849966,0.00024486,2]
[385918466,1758132645237,-613.28,0.00024502,2]
[385918468,1758132645247,-500.0,0.00024543,2]
[385918469,1758132645257,-150.0,0.00024551,4]
[385918470,1758132645266,-150.0,0.00024551,4]
[385918471,1758132645275,-1000.0,0.00024585,2]
[385918472,1758132645284,-400.0,0.00024585,2]
[385918473,1758132645294,-400.0,0.00024585,2]
[385918474,1758132645304,-400.0,0.00024585,2]
[385918475,1758132645314,-400.0,0.00024585,2]
[385918476,1758132645324,-400.0,0.00024585,2]
[385918478,1758132645335,-851.32,0.00024585,2]
[385918480,1758132645345,-531.95,0.00024585,2]
[385918481,1758132645354,-400.0,0.00024585,2]
[385918484,1758132645363,-1262.44,0.00024585,2]
[385918487,1758132645373,-400.0,0.00024585,2]
[385918488,1758132645382,-400.0,0.00024585,2]
[385918489,1758132645392,-414.27,0.00024585,2]
[385918490,1758132645401,-153.280324,0.00024585,2]
[385918491,1758132645409,-204.880579,0.00024585,2]
[385918492,1758132645419,-400.0,0.00024585,2]
[385918493,1758132645427,-403.33,0.00024585,2]
[385918494,1758132645438,-506.04,0.00024585,2]
[385918495,1758132645447,-475.95,0.00024585,2]
[385918496,1758132645456,-1731.23,0.00024585,2]
[385918497,1758132645466,-184.06,0.00024585,2]
[385918498,1758132645476,-500.0,0.00024585,2]
[385918499,1758132645485,-666.59,0.00024585,2]
[385918500,1758132645494,-400.0,0.00024585,2]
[385918501,1758132645503,-400.0,0.00024585,2]
[385918502,1758132645514,-580.62,0.00024585,2]
[385918503,1758132645523,-400.0,0.00024585,2]
[385918504,1758132645533,-690.38,0.00024585,2]
[385918505,1758132645542,-400.0,0.00024585,2]
[385918506,1758132645552,-482.39,0.00024585,2]
[385918507,1758132645561,-400.0,0.00024585,2]
[385918508,1758132645572,-417.57,0.00024585,2]
[385918509,1758132645581,-400.0,0.00024585,2]
[385918510,1758132645590,-404.55,0.00024585,2]
[385918511,1758132645600,-494.9,0.00024585,2]
[385918512,1758132645612,-521.44,0.00024585,2]
[385918513,1758132645621,-400.0,0.00024585,2]
[385918514,1758132645630,-407.03,0.00024585,2]
[385918515,1758132645639,-824.82,0.00024585,2]
[385918516,1758132645650,-400.0,0.00024585,2]
[385918517,1758132645660,-400.0,0.00024585,2]
[385918518,1758132645670,-1877.54,0.00024585,2]
[385918519,1758132645679,-400.0,0.00024585,2]
[385918520,1758132645688,-400.0,0.00024585,2]
[385918521,1758132645697,-400.0,0.00024585,2]
[385918522,1758132645706,-400.0,0.00024585,2]
[385918523,1758132645716,-628.58,0.00024585,2]
[385918524,1758132645726,-400.0,0.00024585,2]
[385918525,1758132645735,-432.91,0.00024585,2]
[385918526,1758132645744,-493.29,0.00024585,2]
[385918527,1758132645754,-671.62,0.00024585,2]
[385918528,1758132645763,-400.0,0.00024585,2]
[385918529,1758132645773,-400.0,0.00024585,2]
[385918530,1758132645782,-450.36,0.00024585,2]
[385918531,1758132645792,-400.0,0.00024585,2]
[385918532,1758132645801,-400.0,0.00024585,2]
[385918533,1758132645811,-920.52,0.00024585,2]
[385918534,1758132645823,-1109.98,0.00024585,2]
[385918535,1758132645831,-704.54,0.00024585,2]
[385918536,1758132645841,-400.0,0.00024585,2]
[385918537,1758132645850,-400.0,0.00024585,2]
[385918538,1758132645860,-505.28,0.00024585,2]
[385918539,1758132645869,-400.0,0.00024586,2]
[385918540,1758132645878,-400.0,0.00024586,2]
[385918541,1758132645887,-400.0,0.00024586,2]
[385918542,1758132645896,-400.0,0.00024586,2]
[385918544,1758132645906,-193.29158816,0.00024586,2]
[385918546,1758132645915,-400.0,0.00024586,2]
[385918548,1758132645925,-400.0,0.00024586,2]
[385918550,1758132645934,-400.0,0.00024586,2]
[385918552,1758132645944,-541.71669614,0.00024586,2]
[385918554,1758132645953,-400.0,0.00024586,2]
[385918556,1758132645964,-400.0,0.00024586,2]
[385918558,1758132645973,-400.0,0.00024586,2]
[385918561,1758132645984,-400.0,0.00024586,2]
[385918563,1758132645993,-400.0,0.00024586,2]
[385918564,1758132646003,-400.0,0.00024586,2]
[385918566,1758132646012,-608.7,0.00024586,2]
[385918569,1758132646022,-400.0,0.00024586,2]
[385918571,1758132646031,-360.23576779,0.00024586,2]
[385918572,1758132646041,-400.0,0.00024586,2]
[385918574,1758132646050,-507.18,0.00024586,2]
[385918576,1758132646059,-400.0,0.00024586,2]
[385918578,1758132646072,-400.0,0.00024586,2]
[385918580,1758132646081,-400.0,0.00024586,2]
[385918581,1758132646091,-400.0,0.00024586,2]
[385918582,1758132646100,-400.0,0.00024586,2]
[385918583,1758132646110,-77.00797141,0.00024586,2]
[385918601,1758132647115,-322.99202859,0.00024586,2]
[385918603,1758132647125,-400.0,0.00024586,2]
[385918605,1758132647136,-400.0,0.00024586,2]
[385918607,1758132647145,-400.0,0.00024586,2]
[385918610,1758132647155,-400.0,0.00024586,2]
[385918612,1758132647164,-400.0,0.00024586,2]
[385918614,1758132647174,-0.60797141,0.00024586,2]
[385918616,1758132647186,-399.39202859,0.00024586,2]
[385918618,1758132647196,-400.0,0.00024586,2]
[385918620,1758132647205,-400.0,0.00024586,2]
[385918622,1758132647216,-256.96575937,0.00024586,2]
[385918624,1758132647225,-400.0,0.00024586,2]
[385918626,1758132647235,-400.0,0.00024586,2]
[385918628,1758132647244,-400.0,0.00024586,2]
[385918631,1758132647254,-310.24221204,0.00024586,2]
[385918633,1758132647266,-89.75778796,0.00024586,2]
[385918635,1758132647276,-300.0,0.00024586,2]
[385918637,1758132647285,-53.18471204,0.00024586,2]
[385918639,1758132647297,-346.81528796,0.00024586,2]
[385918641,1758132647306,-400.0,0.00024586,2]
[385918643,1758132647319,-400.0,0.00024586,2]
[385918645,1758132647329,-400.0,0.00024586,2]
[385918647,1758132647338,-400.0,0.00024586,2]
[385918649,1758132647347,-400.0,0.00024586,2]
[385918651,1758132647357,-400.0,0.00024586,2]
[385918653,1758132647367,-400.0,0.00024586,2]
[385918655,1758132647376,-400.0,0.00024586,2]
[385918657,1758132647385,-400.0,0.00024586,2]
[385918659,1758132647395,-400.0,0.00024586,2]
[385918661,1758132647404,-400.0,0.00024586,2]
[385918663,1758132647414,-400.0,0.00024586,2]
[385918665,1758132647423,-400.0,0.00024586,2]
[385918668,1758132647433,-400.0,0.00024586,2]
[385918670,1758132647442,-400.0,0.00024586,2]
[385918672,1758132647453,-400.0,0.00024586,2]
[385918674,1758132647462,-460.59,0.00024586,2]
[385918676,1758132647472,-400.0,0.00024586,2]
[385918678,1758132647482,-400.0,0.00024586,2]
[385918680,1758132647491,-400.0,0.00024586,2]
[385918682,1758132647500,-400.0,0.00024586,2]
[385918684,1758132647510,-400.0,0.00024586,2]
[385918686,1758132647519,-400.0,0.00024586,2]
[385918688,1758132647528,-417.08,0.00024586,2]
[385918690,1758132647538,-400.0,0.00024586,2]
[385918692,1758132647547,-400.0,0.00024586,2]
[385918694,1758132647556,-419.17,0.00024586,2]
[385918696,1758132647568,-432.42,0.00024586,2]
[385918698,1758132647577,-400.0,0.00024586,2]
[385918700,1758132647586,-400.0,0.00024586,2]
[385918702,1758132647595,-400.0,0.00024586,2]
[385918704,1758132647605,-400.0,0.00024586,2]
[385918706,1758132647616,-400.0,0.00024586,2]
[385918708,1758132647626,-400.0,0.00024586,2]
[385918710,1758132647635,-400.0,0.00024586,2]
[385918712,1758132647644,-400.0,0.00024586,2]
[385918714,1758132647655,-400.0,0.00024586,2]
[385918716,1758132647664,-598.0,0.00024586,2]
[385918719,1758132647674,-400.0,0.00024586,2]
[385918722,1758132647685,-612.1,0.00024586,2]
[385918724,1758132647696,-533.61,0.00024586,2]
[385918726,1758132647706,-400.0,0.00024586,2]
[385918728,1758132647715,-400.0,0.00024586,2]
[385918730,1758132647725,-400.0,0.00024586,2]
[385918732,1758132647734,-253.5782519,0.00024586,2]
[385918734,1758132647743,-400.0,0.00024586,2]
[385918736,1758132647752,-400.0,0.00024586,2]
[385918738,1758132647762,-567.79,0.00024586,2]
[385918740,1758132647773,-400.0,0.00024586,2]
[385918742,1758132647783,-400.0,0.00024586,2]
[385918744,1758132647793,-473.76,0.00024586,2]
[385918746,1758132647802,-621.39,0.00024586,2]
[385918748,1758132647812,-400.0,0.00024586,2]
[385918750,1758132647823,-409.33,0.00024586,2]
[385918753,1758132647833,-400.0,0.00024586,2]
[385918755,1758132647843,-400.0,0.00024586,2]
[385918757,1758132647852,-558.37,0.00024586,2]
[385918759,1758132647862,-400.0,0.00024586,2]
[385918761,1758132647872,-400.0,0.00024586,2]
[385918763,1758132647882,-454.9,0.00024586,2]
[385918765,1758132647891,-400.0,0.00024586,2]
[385918767,1758132647901,-421.77071948,0.00024586,2]
[385918769,1758132647910,-400.0,0.00024586,2]
[385918771,1758132647919,-400.0,0.00024586,2]
[385918773,1758132647928,-400.0,0.00024586,2]
[385918775,1758132647938,-400.0,0.00024586,2]
[385918777,1758132647947,-219.18073596,0.00024586,2]
[385918779,1758132647956,-400.0,0.00024586,2]
[385918781,1758132647965,-400.0,0.00024586,2]
[385918783,1758132647975,-400.0,0.00024586,2]
[385918785,1758132647984,-400.0,0.00024586,2]
[385918786,1758132647993,-400.0,0.00024586,2]
[385918787,1758132648003,-400.0,0.00024586,2]
[385918788,1758132648013,-400.0,0.00024586,2]
[385918789,1758132648022,-400.0,0.00024586,2]
[385918790,1758132648031,-400.0,0.00024586,2]
[385918791,1758132648041,-400.0,0.00024586,2]
[385918792,1758132648051,-421.9594653,0.00024586,2]
[385918793,1758132648060,-400.0,0.00024586,2]
[385918794,1758132648074,-400.0,0.00024586,2]
[385918795,1758132648084,-400.0,0.00024586,2]
[385918796,1758132648094,-400.0,0.00024586,2]
[385918797,1758132648103,-400.0,0.00024586,2]
[385918798,1758132648114,-400.0,0.00024586,2]
[385918799,1758132648123,-248.6,0.00024586,2]
[385918800,1758132648134,-400.0,0.00024586,2]
[385918801,1758132648143,-400.0,0.00024586,2]
[385918802,1758132648153,-400.0,0.00024586,2]
[385918803,1758132648163,-400.0,0.00024586,2]
[385918804,1758132648173,-400.0,0.00024586,2]
[385918805,1758132648183,-400.0,0.00024586,2]
[385918806,1758132648193,-400.0,0.00024586,2]
[385918807,1758132648204,-457.92,0.00024586,2]
[385918808,1758132648215,-400.0,0.00024586,2]
[385918809,1758132648225,-421.21,0.00024586,2]
[385918810,1758132648235,-400.0,0.00024586,2]
[385918811,1758132648245,-386.48945369,0.00024586,2]
[385918812,1758132648255,-1541.52,0.00024586,2]
[385918813,1758132648265,-400.0,0.00024586,2]
[385918814,1758132648275,-400.0,0.00024586,2]
[385918815,1758132648284,-407.63018179,0.00024586,2]
[385918816,1758132648294,-400.0,0.00024586,2]
[385918817,1758132648304,-400.0,0.00024586,2]
[385918818,1758132648316,-463.14,0.00024586,2]
[385918819,1758132648325,-400.0,0.00024586,2]
[385918820,1758132648334,-400.0,0.00024586,2]
[385918821,1758132648344,-1955.83,0.00024586,2]
[385918822,1758132648353,-400.0,0.00024586,2]
[385918823,1758132648363,-417.45818986,0.00024586,2]
[385918824,1758132648372,-400.0,0.00024586,2]
[385918825,1758132648382,-400.0,0.00024586,2]
[385918826,1758132648391,-447.47,0.00024586,2]
[385918827,1758132648400,-400.0,0.00024586,2]
[385918828,1758132648410,-400.0,0.00024586,2]
[385918829,1758132648420,-400.0,0.00024586,2]
[385918830,1758132648430,-574.16,0.00024586,2]
[385918831,1758132648439,-400.0,0.00024586,2]
[385918832,1758132648449,-400.0,0.00024586,2]
[385918833,1758132648459,-457.97,0.00024586,2]
[385918834,1758132648469,-400.0,0.00024586,2]
[385918835,1758132648479,-1923.65,0.00024586,2]
[385918836,1758132648488,-400.0,0.00024586,2]
[385918837,1758132648498,-400.0,0.00024586,2]
[385918838,1758132648507,-400.0,0.00024586,2]
[385918839,1758132648517,-400.0,0.00024586,2]
[385918840,1758132648527,-400.0,0.00024586,2]
[385918841,1758132648536,-400.0,0.00024586,2]
[385918842,1758132648545,-400.0,0.00024586,2]
[385918843,1758132648555,-400.0,0.00024586,2]
[385918844,1758132648566,-400.0,0.00024586,2]
[385918845,1758132648894,-500.72,0.00024586,2]
[385918846,1758132648905,-2521.74,0.00024586,2]
[385918847,1758132648916,-400.0,0.00024586,2]
[385918848,1758132648926,-400.0,0.00024586,2]
[385918849,1758132648936,-400.0,0.00024586,2]
[385918850,1758132648946,-400.0,0.00024586,2]
[385918851,1758132648956,-1777.01,0.00024586,2]
[385918852,1758132648966,-400.0,0.00024586,2]
[385918853,1758132648976,-400.0,0.00024586,2]
[385918854,1758132648987,-400.0,0.00024586,2]
[385918855,1758132648997,-400.0,0.00024586,2]
[385918856,1758132649007,-588.57,0.00024586,2]
[385918857,1758132649017,-400.0,0.00024586,2]
[385918858,1758132649027,-400.0,0.00024586,2]
[385918859,1758132649037,-400.0,0.00024586,2]
[385918860,1758132649047,-400.0,0.00024586,2]
[385918861,1758132649057,-400.0,0.00024586,2]
[385918862,1758132649074,-437.69,0.00024586,2]
[385918863,1758132649084,-400.0,0.00024586,2]
[385918864,1758132649094,-400.0,0.00024586,2]
[385918865,1758132649104,-400.0,0.00024586,2]
[385918866,1758132649114,-487.1,0.00024586,2]
[385918867,1758132649125,-412.20746512,0.00024586,2]
[385918868,1758132649135,-400.0,0.00024586,2]
[385918869,1758132649146,-400.0,0.00024586,2]
[385918870,1758132649156,-400.0,0.00024586,2]
[385918871,1758132649166,-476.65,0.00024586,2]
[385918872,1758132649176,-465.27,0.00024586,2]
[385918873,1758132649186,-501.26689836,0.00024586,2]
[385918874,1758132649195,-400.0,0.00024586,2]
[385918875,1758132649205,-400.0,0.00024586,2]
[385918876,1758132649215,-400.0,0.00024586,2]
[385918877,1758132649225,-400.0,0.00024586,2]
[385918878,1758132649235,-400.0,0.00024586,2]
[385918879,1758132649244,-400.0,0.00024586,2]
[385918880,1758132649254,-405.82,0.00024586,2]
[385918881,1758132649263,-400.0,0.00024586,2]
[385918882,1758132649273,-400.0,0.00024586,2]
[385918883,1758132649282,-400.0,0.00024586,2]
[385918884,1758132649292,-400.0,0.00024586,2]
[385918885,1758132649303,-400.0,0.00024586,2]
[385918886,1758132649312,-400.0,0.00024586,2]
[385918887,1758132649329,-400.0,0.00024586,2]
[385918888,1758132649339,-400.0,0.00024586,2]
[385918889,1758132649349,-683.01,0.00024586,2]
[385918890,1758132649358,-475.45,0.00024586,2]
[385918891,1758132649368,-400.0,0.00024586,2]
[385918892,1758132649377,-400.0,0.00024586,2]
[385918893,1758132649387,-445.84,0.00024586,2]
[385918894,1758132649396,-762.4,0.00024586,2]
[385918895,1758132649406,-400.0,0.00024586,2]
[385918896,1758132649416,-400.0,0.00024586,2]
[385918897,1758132649425,-677.86,0.00024586,2]
[385918898,1758132649434,-400.0,0.00024586,2]
[385918899,1758132649444,-400.0,0.00024586,2]
[385918900,1758132649453,-797.37,0.00024586,2]
[385918901,1758132649462,-744.43,0.00024586,2]
[385918902,1758132649472,-400.0,0.00024586,2]
[385918903,1758132649482,-566.67,0.00024586,2]
[385918904,1758132649492,-400.0,0.00024586,2]
[385918905,1758132649502,-418.91,0.00024586,2]
[385918906,1758132649512,-1703.43,0.00024586,2]
[385918907,1758132649521,-675.49,0.00024586,2]
[385918908,1758132649531,-400.0,0.00024586,2]
[385918909,1758132649540,-400.0,0.00024586,2]
[385918910,1758132649550,-400.0,0.00024586,2]
[385918911,1758132649559,-400.0,0.00024586,2]
[385918912,1758132649575,-400.0,0.00024586,2]
[385918913,1758132649585,-2792.24,0.00024586,2]
[385918914,1758132649596,-400.0,0.00024586,2]
[385918915,1758132649607,-438.64450687,0.00024586,2]
[385918916,1758132649619,-400.0,0.00024586,2]
[385918917,1758132649630,-898.76,0.00024586,2]
[385918918,1758132649640,-400.0,0.00024586,2]
[385918919,1758132649650,-540.7,0.00024586,2]
[385918920,1758132649660,-400.0,0.00024586,2]
[385918921,1758132649671,-470.44,0.00024586,2]
[385918922,1758132649680,-400.0,0.00024586,2]
[385918923,1758132649693,-400.0,0.00024586,2]
[385918924,1758132649703,-400.0,0.00024586,2]
[385918925,1758132649712,-413.4,0.00024586,2]
[385918926,1758132649722,-400.0,0.00024586,2]
[385918927,1758132649731,-400.0,0.00024586,2]
[385918928,1758132649741,-1000.34,0.00024586,2]
[385918929,1758132649750,-400.0,0.00024586,2]
[385918930,1758132649760,-400.0,0.00024586,2]
[385918931,1758132649769,-400.0,0.00024586,2]
[385918932,1758132649779,-400.0,0.00024586,2]
[385918933,1758132649790,-400.0,0.00024586,2]
[385918934,1758132649800,-874.82,0.00024586,2]
[385918935,1758132649810,-400.0,0.00024586,2]
[385918936,1758132649825,-400.0,0.00024586,2]
[385918937,1758132649834,-400.0,0.00024586,2]
[385918938,1758132649843,-400.0,0.00024586,2]
[385918939,1758132649853,-400.0,0.00024586,2]
[385918940,1758132649862,-400.0,0.00024586,2]
[385918941,1758132649872,-3372.05,0.00024586,2]
[385918942,1758132649881,-400.0,0.00024586,2]
[385918943,1758132649891,-400.0,0.00024586,2]
[385918944,1758132649901,-429.73,0.00024586,2]
[385918945,1758132649910,-401.97,0.00024586,2]
[385918946,1758132649920,-1712.51,0.00024586,2]
[385918947,1758132649930,-400.0,0.00024586,2]
[385918948,1758132649940,-530.65,0.00024586,2]
[385918949,1758132649949,-685.04,0.00024586,2]
[385918950,1758132649959,-400.0,0.00024586,2]
[385918951,1758132649969,-400.0,0.00024586,2]
[385918952,1758132649979,-400.0,0.00024586,2]
[385918953,1758132649988,-400.0,0.00024586,2]
[385918954,1758132649999,-472.15,0.00024586,2]
[385918955,1758132650009,-887.54,0.00024586,2]
[385918956,1758132650018,-400.0,0.00024586,2]
[385918957,1758132650028,-400.0,0.00024586,2]
[385918958,1758132650037,-406.25,0.00024586,2]
[385918959,1758132650046,-812.87,0.00024586,2]
[385918960,1758132650056,-432.63,0.00024586,2]
[385918961,1758132650068,-498.77,0.00024586,2]
[385918962,1758132650078,-731.66,0.00024586,2]
[385918963,1758132650088,-400.0,0.00024586,2]
[385918964,1758132650097,-672.01,0.00024586,2]
[385918965,1758132650107,-1661.82,0.00024586,2]
[385918966,1758132650116,-400.0,0.00024586,2]
[385918967,1758132650126,-1680.0,0.00024657,2]
[385918968,1758132650136,-268.62,0.00024658,2]
[385918969,1758132650145,-150.0,0.00024692,4]
[385918970,1758132650157,-1391.21034974,0.00024699,2]
[385918971,1758132650167,-272.879,0.000247,2]
[385918972,1758132650176,-1000.0,0.000247,2]
[385918973,1758132650185,-1000.0,0.000247,2]
[385918974,1758132650195,-300.0,0.000247,9]
[385918975,1758132650204,-1088.0,0.00024757,2]
[385918976,1758132650214,-842.80308474,0.00024759,2]
[385918977,1758132650223,-2473.69849966,0.0002476,2]
[385918978,1758132650233,-166.41554703,0.000248,2]
[385918979,1758132650243,-700.0,0.000248,9]
[385918980,1758132650252,-171508.888108,0.000248,2]
[385918981,1758132650262,-380.0,0.00024816,2]
[385918982,1758132650272,-10719.3055068,0.00024828,2]
[385918983,1758132650281,-150.0,0.00024833,4]
[385918984,1758132650291,-459.8,0.00024838,2]
[385918985,1758132650300,-2942.8,0.00024838,2]
[385918986,1758132650309,-400.0,0.00024838,2]
[385918987,1758132650322,-809.17,0.00024838,2]
[385918988,1758132650331,-427.61,0.00024838,2]
[385918989,1758132650340,-487.33,0.00024838,2]
[385918990,1758132650350,-400.0,0.00024838,2]
[385918991,1758132650358,-429.02,0.00024838,2]
[385918992,1758132650367,-400.0,0.00024838,2]
[385918993,1758132650376,-512.94,0.00024838,2]
[385918994,1758132650386,-820.04,0.00024838,2]
[385918995,1758132650395,-1644.69,0.00024838,2]
[385918996,1758132650405,-1000.0,0.00024838,2]
[385918997,1758132650415,-1076.95,0.00024838,2]
[385918998,1758132650427,-880.33,0.00024838,2]
[385918999,1758132650436,-538.76,0.00024838,2]
[385919000,1758132650445,-711.04,0.00024838,2]
[385919001,1758132650454,-652.08,0.00024838,2]
[385919002,1758132650464,-2335.93,0.00024838,2]
[385919003,1758132650474,-848.32,0.00024838,2]
[385919004,1758132650484,-400.0,0.00024838,2]
[385919005,1758132650494,-1106.88,0.00024838,2]
[385919006,1758132650503,-702.6,0.00024838,2]
[385919007,1758132650513,-400.0,0.00024838,2]
[385919008,1758132650522,-400.0,0.00024838,2]
[385919009,1758132650531,-400.0,0.00024838,2]
[385919010,1758132650541,-180.03051538,0.0002484,2]
[385919011,1758132650550,-10719.3055068,0.00024849,2]
[385919012,1758132650559,-907.25,0.00024849,2]
[385919013,1758132650572,-521.42,0.00024849,2]
[385919014,1758132650582,-506.9,0.00024849,2]
[385919015,1758132650592,-400.0,0.00024849,2]
[385919016,1758132650601,-500.0,0.00024849,2]
[385919017,1758132650612,-400.0,0.00024849,2]
[385919018,1758132650624,-632.96,0.00024849,2]
[385919019,1758132650633,-1062.0,0.0002485,2]
[385919020,1758132650642,-44315.06777921,0.0002485,2]
[385919021,1758132650660,-573.30953323,0.0002485,2]
[385919022,1758132650812,-400.0,0.00024038,2]
[385919023,1758132650827,-400.0,0.00024311,2]
[385919024,1758132650836,-30146.76123486,0.0002485,2]
[385919025,1758132650846,-10719.3055068,0.00024851,2]
[385919026,1758132650855,-400.0,0.00024859,2]
[385919027,1758132650865,-400.0,0.00024859,2]
[385919028,1758132650874,-400.0,0.00024859,2]
[385919029,1758132650884,-400.0,0.00024859,2]
[385919030,1758132650894,-400.0,0.00024859,2]
[385919031,1758132650904,-851.32,0.00024859,2]
[385919032,1758132650914,-531.95,0.00024859,2]
[385919033,1758132650926,-400.0,0.00024859,2]
[385919034,1758132650936,-1262.44,0.00024859,2]
[385919035,1758132650947,-400.0,0.00024859,2]
[385919036,1758132650956,-400.0,0.00024859,2]
[385919037,1758132650967,-414.27,0.00024859,2]
[385919038,1758132650976,-153.280324,0.00024859,2]
[385919039,1758132650985,-204.880579,0.00024859,2]
[385919040,1758132650995,-400.0,0.00024859,2]
[385919041,1758132651004,-403.33,0.00024859,2]
[385919042,1758132651013,-506.04,0.00024859,2]
[385919043,1758132651023,-475.95,0.00024859,2]
[385919044,1758132651032,-1731.23,0.00024859,2]
[385919045,1758132651041,-666.59,0.00024859,2]
[385919046,1758132651051,-400.0,0.00024859,2]
[385919047,1758132651060,-400.0,0.00024859,2]
[385919048,1758132651073,-580.62,0.00024859,2]
[385919049,1758132651082,-400.0,0.00024859,2]
[385919050,1758132651092,-690.38,0.00024859,2]
[385919051,1758132651101,-400.0,0.00024859,2]
[385919052,1758132651111,-482.39,0.00024859,2]
[385919053,1758132651120,-400.0,0.00024859,2]
[385919054,1758132651130,-417.57,0.00024859,2]
[385919055,1758132651139,-400.0,0.00024859,2]
[385919056,1758132651149,-404.55,0.00024859,2]
[385919057,1758132651158,-494.9,0.00024859,2]
[385919058,1758132651167,-521.44,0.00024859,2]
[385919059,1758132651177,-400.0,0.00024859,2]
[385919060,1758132651186,-407.03,0.00024859,2]
[385919061,1758132651195,-824.82,0.00024859,2]
[385919062,1758132651204,-400.0,0.00024859,2]
[385919063,1758132651213,-400.0,0.00024859,2]
[385919064,1758132651222,-1877.54,0.00024859,2]
[385919065,1758132651231,-400.0,0.00024859,2]
[385919066,1758132651241,-400.0,0.00024859,2]
[385919067,1758132651250,-400.0,0.00024859,2]
[385919068,1758132651331,-400.0,0.00024859,2]
[385919069,1758132651340,-628.58,0.00024859,2]
[385919070,1758132651350,-400.0,0.00024859,2]